bitfinex/quotes_SOLUSD_20260224
["timestamp","ask_amount","ask_price","bid_price","bid_amount"]
[1771958524492,12.75201162,78.419,78.382,12.75803118]
[1771958524493,17.13008119,78.419,78.391,4.49623825]
[1771958524893,12.75201162,78.419,78.391,4.49623825]
[1771958525186,4.37806957,78.418,78.391,4.49623825]
[1771958525992,0.2,78.409,78.391,4.49623825]
[1771958526982,0.2,78.399,78.391,4.49623825]
[1771958528218,0.2,78.399,78.391,4.29623825]
[1771958529098,0.2,78.399,78.361,35.6693421]
[1771958529099,4.37806957,78.397,78.28,5.01102054]
[1771958529404,0.2,78.409,78.39,5.01102054]
[1771958529405,12.75380063,78.408,78.39,5.01102054]
[1771958529609,12.95365894,78.409,78.39,5.01102054]
[1771958529994,12.95365894,78.409,78.38,5.01102054]
[1771958530200,12.95365894,78.409,78.381,4.49623825]
[1771958530620,0.2,78.409,78.381,4.49623825]
[1771958530919,12.74973544,78.433,78.405,4.49623825]
[1771958531100,12.74973544,78.433,78.411,4.49623825]
[1771958532110,4.37806957,78.432,78.411,4.49623825]
[1771958532305,4.37806957,78.432,78.41,5.01102054]
[1771958532624,4.37806957,78.432,78.404,4.49623825]
[1771958533403,0.2,78.409,78.404,4.49623825]
[1771958533607,4.37806957,78.425,78.38,3.69383402]
[1771958533826,5.01102054,78.41,78.38,5.01102054]
[1771958534013,4.37806957,78.409,78.375,4.49623825]
[1771958534403,0.2,78.399,78.38,5.01102054]
[1771958535327,0.2,78.389,78.38,5.01102054]
[1771958535722,0.2,78.399,78.381,4.49623825]
[1771958536029,12.75542743,78.398,78.381,4.49623825]
[1771958537331,0.2,78.399,78.391,4.49623825]
[1771958537513,0.2,78.399,78.383,4.49623825]
[1771958540320,0.2,78.398,78.383,4.49623825]
[1771958541118,0.2,78.388,78.383,4.49623825]
[1771958541538,0.2,78.398,78.384,4.49623825]
[1771958542041,0.2,78.398,78.384,4.29623825]
[1771958544636,0.2,78.398,78.38,5.01102054]
[1771958544637,12.75559013,78.397,78.38,5.01102054]
[1771958544817,4.18569709,78.389,78.363,12.76106847]
[1771958545335,4.18569709,78.389,78.364,4.24597083]
[1771958546833,4.42278544,78.387,78.356,4.24597083]
[1771958547029,4.42278544,78.387,78.357,4.24597083]
[1771958549231,12.75738014,78.386,78.361,4.24597083]
[1771958549434,0.2,78.378,78.361,4.24597083]
[1771958552844,0.2,78.378,78.363,4.24597083]
[1771958553031,0.2,78.388,78.371,4.24597083]
[1771958553836,12.75721739,78.387,78.371,4.24597083]
[1771958554566,4.42278544,78.377,78.355,4.24597083]
[1771958554854,0.2,78.378,78.343,17.0102002]
[1771958554855,4.42278544,78.369,78.343,17.0102002]
[1771958555025,17.18179495,78.376,78.351,4.24597083]
[1771958555227,0.2,78.378,78.351,4.24597083]
[1771958555530,0.2,78.378,78.361,4.24597083]
[1771958556126,0.2,78.388,78.371,4.24597083]
[1771958556451,0.2,78.388,78.371,4.04597083]
[1771958556943,0.2,78.388,78.372,12.75965906]
[1771958557135,0.2,78.399,78.372,12.75965906]
[1771958557650,4.42278544,78.397,78.372,12.75965906]
[1771958558443,4.42278544,78.397,78.373,4.24597083]
[1771958559152,4.42278544,78.397,78.375,4.24597083]
[1771958560047,4.42278544,78.397,78.38,5.01144643]
[1771958560248,0.4,78.398,78.38,5.01144643]
[1771958560545,0.4,78.398,78.375,4.24597083]
[1771958560754,0.4,78.398,78.374,12.75933345]
[1771958560755,4.42278544,78.436,78.391,4.24597083]
[1771958560954,4.42278544,78.436,78.374,146.73233468]
[1771958560955,4.42278544,78.436,78.41,5.01144643]
[1771958561332,4.42278544,78.436,78.411,12.75331267]
[1771958561556,4.42278544,78.436,78.411,12.55331267]
[1771958562449,4.42278544,78.435,78.4,5.01144643]
[1771958563283,31.87079813,78.442,78.401,12.55493935]
[1771958563284,4.37855758,78.433,78.401,12.55493935]
[1771958565652,12.749898,78.432,78.401,12.55493935]
[1771958565846,4.37855758,78.431,78.401,12.55493935]
[1771958566043,4.37855758,78.431,78.41,5.01144643]
[1771958566230,4.37855758,78.431,78.411,4.24597083]
[1771958566434,4.37855758,78.438,78.411,4.24597083]
[1771958567462,4.37855758,78.438,78.42,5.01144643]
[1771958568765,4.57855758,78.438,78.42,5.01144643]
[1771958568948,4.57855758,78.438,78.421,12.75168641]
[1771958569556,0.2,78.428,78.417,12.75229191]
[1771958569758,0.2,78.428,78.42,5.01144643]
[1771958570568,0.2,78.428,78.42,4.35566986]
[1771958570790,4.57855758,78.428,78.405,4.24597083]
[1771958571076,4.57855758,78.428,78.41,5.01144643]
[1771958571372,4.57855758,78.428,78.42,5.01144643]
[1771958571950,0.2,78.438,78.42,5.01144643]
[1771958572168,4.57855758,78.438,78.42,5.01144643]
[1771958572351,4.37855758,78.437,78.42,5.01144643]
[1771958575807,0.2,78.428,78.42,5.01144643]
[1771958576694,0.2,78.428,78.42,4.81144643]
[1771958577373,0.2,78.428,78.42,4.61144643]
[1771958578393,0.2,78.428,78.399,31.88777584]
[1771958578394,4.16591091,78.427,78.41,5.01144643]
[1771958578592,4.16591091,78.427,78.36,107.01144643]
[1771958578593,4.16591091,78.427,78.4,5.01144643]
[1771958579465,4.16591091,78.427,78.4,9.17084033]
[1771958579670,4.16591091,78.427,78.401,4.1593939]
[1771958580490,0.2,78.428,78.411,4.1593939]
[1771958580688,0.2,78.428,78.42,5.01144643]
[1771958581085,0.2,78.438,78.42,5.01144643]
[1771958581694,0.2,78.438,78.42,9.17084033]
[1771958582102,16.91642535,78.437,78.42,5.01144643]
[1771958582280,4.1673401,78.436,78.42,5.01144643]
[1771958582480,0.2,78.427,78.42,5.01144643]
[1771958582680,0.2,78.438,78.421,4.1593939]
[1771958583380,0.2,78.438,78.421,3.9593939]
[1771958583783,10.34856838,78.473,78.43,5.01144643]
[1771958583784,4.35235345,78.455,78.43,5.01144643]
[1771958583992,4.35235345,78.455,78.42,44.63137073]
[1771958583993,4.35235345,78.455,78.44,5.01144643]
[1771958584177,4.35235345,78.455,78.44,4.81144643]
[1771958584496,4.35235345,78.455,78.42,44.63137073]
[1771958584497,4.35235345,78.453,78.43,4.95436543]
[1771958584794,5.36086188,78.467,78.42,5.01144643]
[1771958584995,3.69383402,78.473,78.4,5.01144643]
[1771958584996,4.30882991,78.464,78.44,5.01144643]
[1771958585198,4.30882991,78.464,78.4,5.01144643]
[1771958585379,4.30882991,78.464,78.431,4.1593939]
[1771958586107,4.30882991,78.46,78.42,5.01144643]
[1771958586282,4.30882991,78.458,78.41,5.01144643]
[1771958586482,4.30882991,78.456,78.412,4.1593939]
[1771958586684,4.30882991,78.456,78.42,5.01144643]
[1771958588497,4.30882991,78.456,78.421,44.63090243]
[1771958588702,4.30882991,78.468,78.44,5.01144643]
[1771958591701,4.30882991,78.466,78.44,17.7600056]
[1771958591902,4.30882991,78.466,78.441,4.1593939]
[1771958594888,4.30882991,78.464,78.44,5.01144643]
[1771958595497,4.30882991,78.464,78.44,9.17084033]
[1771958595804,4.30882991,78.464,78.442,4.1593939]
[1771958597507,12.74486063,78.463,78.442,4.1593939]
[1771958598289,17.05369054,78.463,78.442,4.1593939]
[1771958598513,4.30882991,78.462,78.442,4.1593939]
[1771958599226,4.30882991,78.462,78.44,5.01144643]
[1771958600612,12.7451855,78.461,78.441,4.1593939]
[1771958601216,4.30882991,78.46,78.44,5.01144643]
[1771958602811,4.30882991,78.46,78.437,12.74906536]
[1771958602812,4.30882991,78.458,78.435,4.1593939]
[1771958603113,4.30882991,78.458,78.44,5.01144643]
[1771958603493,12.74486063,78.463,78.441,4.1593939]
[1771958603810,4.30882991,78.462,78.441,4.1593939]
[1771958604622,13.40235778,78.476,78.45,5.01144643]
[1771958604798,4.12889426,78.475,78.45,5.01144643]
[1771958605118,4.12889426,78.475,78.443,4.49760979]
[1771958605904,4.12889426,78.475,78.45,5.01144643]
[1771958606100,4.12889426,78.475,78.43,5.01144643]
[1771958606306,4.12889426,78.475,78.431,4.26840221]
[1771958606897,4.23070487,78.473,78.44,5.01144643]
[1771958607609,4.23070487,78.473,78.433,4.26840221]
[1771958608202,4.23070487,78.473,78.432,12.749898]
[1771958608203,4.23070487,78.469,78.43,5.01144643]
[1771958608909,4.23070487,78.467,78.432,4.26840221]
[1771958609109,4.23070487,78.467,78.43,5.01144643]
[1771958609423,4.23070487,78.467,78.43,9.27984864]
[1771958609807,4.23070487,78.467,78.431,4.26840221]
[1771958611404,4.23070487,78.465,78.431,4.26840221]
[1771958611806,44.60530674,78.466,78.4,5.00269417]
[1771958611807,4.23070487,78.459,78.422,4.26840221]
[1771958612020,4.23070487,78.459,78.42,5.00269417]
[1771958612326,108.32717353,78.466,78.404,4.26840221]
[1771958612327,4.23070487,78.448,78.404,4.26840221]
[1771958612524,4.23070487,78.448,78.41,5.00269417]
[1771958612825,4.23070487,78.448,78.41,9.27109638]
[1771958613124,4.23070487,78.448,78.411,4.26840221]
[1771958613323,5.36086188,78.449,78.373,3.69383402]
[1771958613324,4.23070487,78.446,78.42,5.00269417]
[1771958613524,4.23070487,78.446,78.409,12.753527]
[1771958613525,4.23070487,78.446,78.411,4.26840221]
[1771958614927,4.23070487,78.446,78.412,4.26840221]
[1771958615129,4.23070487,78.446,78.42,4.01790623]
[1771958615838,4.23070487,78.446,78.416,4.26840221]
[1771958615839,44.61724775,78.445,78.416,4.26840221]
[1771958616010,4.23070487,78.444,78.416,4.26840221]
[1771958616912,4.23070487,78.442,78.411,4.26840221]
[1771958617114,4.23070487,78.442,78.41,5.00269417]
[1771958617426,4.23070487,78.442,78.362,51.04453799]
[1771958617427,4.23070487,78.428,78.393,4.26840221]
[1771958618321,4.23070487,78.419,78.38,5.00269417]
[1771958618515,4.23070487,78.419,78.381,4.26840221]
[1771958618715,4.23070487,78.419,78.39,5.00269417]
[1771958619410,4.23070487,78.417,78.386,4.26840221]
[1771958621332,12.75249948,78.416,78.4,5.00269417]
[1771958621517,12.75249948,78.416,78.401,4.26840221]
[1771958622717,4.23070487,78.439,78.411,4.26840221]
[1771958623430,4.23070487,78.437,78.411,4.26840221]
[1771958624030,4.23070487,78.437,78.411,3.36205029]
[1771958625437,12.74892271,78.438,78.412,12.75315002]
[1771958625860,4.23070487,78.439,78.4,5.00269417]
[1771958626025,4.23070487,78.439,78.378,3.69383402]
[1771958626026,4.23070487,78.439,78.411,4.26840221]
[1771958627131,4.23070487,78.439,78.378,3.69383402]
[1771958627132,12.74729757,78.448,78.421,4.26840221]
[1771958627940,4.23070487,78.451,78.422,4.26840221]
[1771958628524,4.23070487,78.449,78.422,4.26840221]
[1771958630550,4.23070487,78.447,78.422,4.26840221]
[1771958634648,4.23070487,78.445,78.422,4.26840221]
[1771958634851,5.00269417,78.44,78.392,4.26840221]
[1771958635053,44.61667898,78.446,78.392,4.26840221]
[1771958635054,4.23070487,78.429,78.392,4.26840221]
[1771958636539,5.36086188,78.444,78.392,4.26840221]
[1771958636540,4.27909435,78.427,78.392,4.26840221]
[1771958636850,12.75054827,78.428,78.401,4.46467272]
[1771958641550,31.87637068,78.428,78.401,4.46467272]
[1771958642468,17.02915491,78.431,78.41,9.46736689]
[1771958642641,17.02915491,78.431,78.411,4.46467272]
[1771958643862,48.90430631,78.431,78.411,4.46467272]
[1771958648664,4.27909435,78.43,78.411,4.46467272]
[1771958650056,4.27909435,78.43,78.411,4.66467272]
[1771958650559,12.75038569,78.429,78.411,4.66467272]
[1771958651054,17.02948004,78.429,78.411,4.66467272]
[1771958651361,4.27909435,78.428,78.368,31.90077582]
[1771958651540,4.27909435,78.428,78.391,4.46467272]
[1771958651741,4.07909435,78.428,78.392,4.46467272]
[1771958653043,44.62748798,78.427,78.372,4.46467272]
[1771958653243,44.62748798,78.427,78.381,4.46467272]
[1771958653847,4.27909435,78.426,78.381,4.46467272]
[1771958656659,4.27909435,78.424,78.383,4.46467272]
[1771958657664,4.27909435,78.422,78.392,4.46467272]
[1771958658447,4.27909435,78.422,78.401,0.2]
[1771958659860,4.27909435,78.422,78.392,4.46467272]
[1771958659861,4.27909435,78.419,78.392,4.46467272]
[1771958662143,4.27909435,78.417,78.392,4.46467272]
[1771958665546,4.07187479,78.415,78.392,4.46467272]
[1771958665974,4.07187479,78.415,78.385,4.41649335]
[1771958666865,4.07187479,78.415,78.373,4.41649335]
[1771958667375,4.07187479,78.409,78.373,4.41649335]
[1771958667575,5.00269417,78.41,78.373,4.41649335]
[1771958667576,4.07187479,78.407,78.373,4.41649335]
[1771958669375,44.63830221,78.408,78.368,4.41649335]
[1771958669376,4.07187479,78.399,78.368,4.41649335]
[1771958669574,4.07187479,78.397,78.363,4.41649335]
[1771958671870,4.07187479,78.395,78.363,4.41649335]
[1771958674482,44.64627394,78.394,78.363,4.41649335]
[1771958674663,4.07187479,78.393,78.363,4.41649335]
[1771958675686,4.07187479,78.389,78.35,0.2]
[1771958675857,4.07187479,78.379,78.35,0.2]
[1771958676878,4.07187479,78.369,78.331,12.76633772]
[1771958677770,4.07187479,78.369,78.332,4.41649335]
[1771958678084,4.07187479,78.367,78.334,4.41649335]
[1771958678891,4.07187479,78.365,78.331,4.41649335]
[1771958679087,4.07187479,78.365,78.341,4.41649335]
[1771958679802,4.07187479,78.365,78.334,4.41649335]
[1771958679987,44.66108615,78.368,78.33,4.61649335]
[1771958679988,4.07187479,78.359,78.33,4.61649335]
[1771958680189,12.76193879,78.358,78.331,4.41649335]
[1771958680694,4.07187479,78.357,78.331,4.41649335]
[1771958683190,4.07187479,78.355,78.331,4.41649335]
[1771958683421,12.76063599,78.366,78.332,31.91543685]
[1771958683594,12.76063599,78.366,78.341,4.41649335]
[1771958685401,4.07187479,78.367,78.343,4.41649335]
[1771958685587,12.76005434,78.37,78.343,4.41649335]
[1771958687790,4.07187479,78.369,78.343,4.41649335]
[1771958689795,35.96953006,78.376,78.344,4.41649335]
[1771958689986,4.07187479,78.371,78.344,4.41649335]
[1771958690299,12.75974732,78.372,78.331,4.41649335]
[1771958690300,5.01221188,78.37,78.331,4.41649335]
[1771958690489,4.07187479,78.369,78.331,4.41649335]
[1771958691909,4.07187479,78.367,78.331,4.41649335]
[1771958698111,4.23869747,78.365,78.331,4.41649335]
[1771958698813,44.66222596,78.366,78.332,12.76617474]
[1771958699018,44.66222596,78.366,78.341,4.41608776]
[1771958699019,12.76063599,78.366,78.341,4.41608776]
[1771958699311,12.76063599,78.366,78.351,4.41608776]
[1771958699496,4.23869747,78.388,78.351,3.92474524]
[1771958699810,4.23869747,78.386,78.34,5.01221188]
[1771958700395,4.23869747,78.384,78.33,0.2]
[1771958700609,44.65140013,78.385,78.33,0.41871728]
[1771958700610,4.0876937,78.368,78.33,0.41871728]
[1771958700914,4.0876937,78.368,78.32,5.01221188]
[1771958701117,4.0876937,78.368,78.33,5.01221188]
[1771958701310,4.0876937,78.368,78.315,12.76880117]
[1771958701311,4.0876937,78.368,78.35,5.01221188]
[1771958701515,4.0876937,78.368,78.32,5.01221188]
[1771958701516,3.90849644,78.384,78.36,5.01221188]
[1771958702113,12.75786841,78.383,78.36,5.01221188]
[1771958702308,3.69383402,78.402,78.32,5.01221188]
[1771958702612,12.75493935,78.401,78.36,5.01221188]
[1771958703210,3.69383402,78.397,78.341,4.41608776]
[1771958703402,3.69383402,78.397,78.35,5.01221188]
[1771958703712,3.69383402,78.397,78.36,5.01221188]
[1771958704630,3.69383402,78.393,78.353,4.41680316]
[1771958705313,3.69383402,78.393,78.361,4.41680316]
[1771958706504,12.75640371,78.392,78.371,4.41680316]
[1771958707011,3.69383402,78.395,78.381,4.41680316]
[1771958707915,12.75282475,78.414,78.381,4.41680316]
[1771958708116,12.75282475,78.414,78.391,4.41680316]
[1771958708317,12.75282475,78.414,78.362,12.76128735]
[1771958708318,44.63488662,78.414,78.384,4.41680316]
[1771958708822,31.88206187,78.414,78.384,4.41680316]
[1771958709126,31.88206187,78.414,78.39,5.01221188]
[1771958709304,31.88206187,78.414,78.388,4.41680316]
[1771958710918,31.88206187,78.414,78.39,5.01221188]
[1771958711109,31.88206187,78.414,78.391,4.41680316]
[1771958712499,5.01221188,78.4,78.361,4.41680316]
[1771958712703,4.23869747,78.386,78.35,5.01221188]
[1771958712904,4.23869747,78.386,78.321,44.68788702]
[1771958713110,4.23869747,78.386,78.36,5.01221188]
[1771958713909,12.75754289,78.385,78.36,5.01221188]
[1771958714421,4.23869747,78.384,78.35,5.01221188]
[1771958714632,4.23869747,78.384,78.351,4.41608776]
[1771958714922,4.23869747,78.384,78.35,5.01221188]
[1771958717026,4.23869747,78.376,78.34,5.01221188]
[1771958718516,3.69383402,78.377,78.34,5.01221188]
[1771958718517,4.23869747,78.374,78.341,4.41608776]
[1771958720327,4.23869747,78.372,78.341,4.41608776]
[1771958723237,44.65823688,78.373,78.341,4.41608776]
[1771958723238,12.75982187,78.371,78.341,4.41608776]
[1771958723414,4.23869747,78.37,78.341,4.41608776]
[1771958725711,12.7601475,78.369,78.341,4.41608776]
[1771958725915,4.24342968,78.368,78.341,4.41608776]
[1771958728632,12.76047315,78.367,78.341,4.41608776]
[1771958728831,4.24342968,78.366,78.341,4.41608776]
[1771958731040,17.0042285,78.365,78.341,4.41608776]
[1771958732335,12.76023909,78.369,78.35,4.33961915]
[1771958732538,4.24342968,78.368,78.35,5.01221188]
[1771958732723,4.24342968,78.368,78.34,5.01221188]
[1771958733639,4.24342968,78.368,78.35,5.01221188]
[1771958734142,4.24342968,78.368,78.326,44.68503433]
[1771958734143,4.24342968,78.381,78.36,5.01221188]
[1771958734549,12.75835672,78.38,78.361,4.33961913]
[1771958734727,4.24342968,78.379,78.361,4.33961913]
[1771958736045,12.75526473,78.399,78.361,4.33961913]
[1771958736339,4.24342968,78.409,78.381,4.33961913]
[1771958736538,4.24342968,78.409,78.391,4.33961913]
[1771958736745,4.24342968,78.414,78.391,4.33961913]
[1771958737119,12.75038569,78.429,78.401,4.33961913]
[1771958737320,12.75038569,78.429,78.394,4.33961913]
[1771958739133,4.24342968,78.428,78.394,4.33961913]
[1771958739335,44.62634993,78.429,78.38,12.75823402]
[1771958739336,4.24342968,78.416,78.381,4.33961913]
[1771958740744,4.24342968,78.414,78.381,4.33961913]
[1771958743024,4.24342968,78.412,78.381,4.33961913]
[1771958744344,4.24342968,78.412,78.38,5.01153009]
[1771958744726,4.24342968,78.412,78.381,4.33961913]
[1771958744925,4.24342968,78.41,78.381,4.33961913]
[1771958747728,4.24342968,78.408,78.381,4.33961913]
[1771958750828,4.24342968,78.406,78.381,4.33961913]
[1771958753348,4.24342968,78.404,78.381,4.33961913]
[1771958755828,12.75461398,78.403,78.381,4.33961913]
[1771958758843,4.16591761,78.402,78.381,4.33961913]
[1771958760539,4.16591761,78.402,78.375,4.37373787]
[1771958760741,4.16591761,78.4,78.375,4.37373787]
[1771958763151,4.16591761,78.398,78.375,4.37373787]
[1771958764539,4.16591761,78.396,78.375,4.37373787]
[1771958766641,4.16591761,78.394,78.375,4.37373787]
[1771958769747,12.75624099,78.393,78.375,4.37373787]
[1771958771861,4.16591761,78.392,78.359,4.37373787]
[1771958772961,5.01153009,78.39,78.324,44.68617536]
[1771958773166,4.16591761,78.389,78.35,5.01153009]
[1771958773774,44.64969127,78.388,78.313,3.69383402]
[1771958773963,4.16591761,78.387,78.307,3.69383402]
[1771958774978,4.16591761,78.387,78.308,4.37373787]
[1771958775269,4.16591761,78.384,78.308,4.37373787]
[1771958775471,4.16591761,78.379,78.308,4.37373787]
[1771958775857,4.16591761,78.377,78.31,4.37373787]
[1771958777061,48.82130559,78.378,78.31,4.37373787]
[1771958777261,4.16591761,78.377,78.31,4.37373787]
[1771958779587,3.69383402,78.387,78.312,4.37373787]
[1771958779588,44.65652749,78.376,78.312,4.37373787]
[1771958781567,4.16591761,78.373,78.314,4.37373787]
[1771958784093,12.75965906,78.372,78.316,3.98954562]
[1771958786288,4.17449898,78.372,78.317,44.69016942]
[1771958786478,4.17449898,78.372,78.318,3.96709525]
[1771958788275,4.17449898,78.372,78.319,3.96709525]
[1771958788490,4.17449898,78.37,78.321,3.96709525]
[1771958791903,4.17449898,78.37,78.322,44.68731645]
[1771958792097,4.17449898,78.374,78.323,3.96709525]
[1771958795294,4.17449898,78.374,78.322,44.68731645]
[1771958795295,4.17449898,78.372,78.325,3.96709525]
[1771958797586,4.17449898,78.395,78.327,3.96709525]
[1771958797799,4.17449898,78.395,78.33,3.96709525]
[1771958798716,4.17449898,78.403,78.335,3.96709525]
[1771958799212,3.69383402,78.422,78.334,3.69383402]
[1771958799213,4.17449898,78.427,78.34,3.96709525]
[1771958799401,4.17449898,78.419,78.345,3.96709525]
[1771958799745,4.17449898,78.417,78.35,3.96709525]
[1771958801489,4.17449898,78.409,78.35,3.96709525]
[1771958801705,4.17449898,78.407,78.352,3.96709525]
[1771958802307,31.87660209,78.428,78.352,3.96709525]
[1771958802510,4.17449898,78.424,78.355,3.96709525]
[1771958804789,4.17449898,78.422,78.363,3.96709525]
[1771958806602,4.17449898,78.42,78.365,3.96709525]
[1771958808805,4.17449898,78.418,78.367,3.96709525]
[1771958810311,4.17449898,78.418,78.377,3.96709525]
[1771958811111,4.17449898,78.418,78.386,3.96709525]
[1771958811795,4.17449898,78.418,78.388,3.96709525]
[1771958812298,4.17449898,78.428,78.388,3.96709525]
[1771958813714,4.17449898,78.428,78.389,44.64912168]
[1771958813898,4.17449898,78.428,78.39,3.96709525]
[1771958814300,3.69383402,78.447,78.39,3.96709525]
[1771958814301,4.17449898,78.426,78.39,3.96709525]
[1771958814801,4.17449898,78.426,78.389,12.75689191]
[1771958815002,4.17449898,78.426,78.39,3.96709525]
[1771958816100,4.25893068,78.424,78.391,12.75656644]
[1771958817315,12.7513612,78.423,78.391,12.75656644]
[1771958817513,4.25893068,78.422,78.391,12.75656644]
[1771958817703,4.25893068,78.422,78.392,4.18306134]
[1771958817899,4.25893068,78.422,78.397,0.2]
[1771958819017,4.25893068,78.419,78.397,0.2]
[1771958819905,4.25893068,78.417,78.397,0.2]
[1771958821321,4.25893068,78.417,78.387,0.2]
[1771958821625,4.25893068,78.409,78.371,4.18306134]
[1771958821917,4.25893068,78.407,78.366,4.18306134]
[1771958822300,4.25893068,78.399,78.365,0.2]
[1771958822504,4.25893068,78.399,78.366,12.76063599]
[1771958822702,4.25893068,78.416,78.367,4.18306134]
[1771958823616,4.25893068,78.416,78.366,44.66222596]
[1771958823617,0.2,78.422,78.37,4.18306134]
[1771958824312,0.2,78.422,78.371,44.65937655]
[1771958824511,0.2,78.422,78.372,4.18306134]
[1771958824726,0.2,78.412,78.372,4.18306134]
[1771958825525,0.2,78.422,78.372,4.18306134]
[1771958825707,0.2,78.422,78.371,108.45848591]
[1771958825708,0.2,78.422,78.373,4.18306134]
[1771958825905,4.25893068,78.44,78.377,4.18306134]
[1771958826607,4.25893068,78.44,78.379,4.18306134]
[1771958827619,12.74862229,78.44,78.379,4.18306134]
[1771958827820,4.25893068,78.439,78.379,4.18306134]
[1771958828331,4.25893068,78.439,78.381,4.18306134]
[1771958828332,4.25893068,78.438,78.381,4.18306134]
[1771958830238,4.25893068,78.438,78.383,4.18306134]
[1771958831235,4.25893068,78.438,78.385,4.18306134]
[1771958831738,4.25893068,78.436,78.385,4.18306134]
[1771958833633,4.25893068,78.436,78.387,4.18306134]
[1771958835741,4.25893068,78.436,78.389,4.18306134]
[1771958837270,4.25893068,78.435,78.389,4.18306134]
[1771958837624,4.25893068,78.433,78.391,4.18306134]
[1771958839538,4.25893068,78.433,78.4,4.18306134]
[1771958840538,4.25893068,78.431,78.41,12.75347532]
[1771958840857,4.25893068,78.431,78.403,12.75451234]
[1771958841736,4.25893068,78.429,78.4,12.75510204]
[1771958845034,4.15708582,78.427,78.4,12.75510204]
[1771958845560,4.15708582,78.427,78.399,0.2]
[1771958845729,4.15708582,78.427,78.389,0.2]
[1771958845730,4.15708582,78.427,78.389,12.95675714]
[1771958846755,4.15708582,78.427,78.389,17.06928681]
[1771958847855,4.22118841,78.425,78.39,4.11252967]
[1771958849750,4.22118841,78.423,78.392,4.11252967]
[1771958851742,4.22118841,78.421,78.394,4.11252967]
[1771958855138,31.87585395,78.43,78.389,31.89222977]
[1771958855139,16.97303742,78.42,78.396,4.11252967]
[1771958855748,4.22118841,78.419,78.396,4.11252967]
[1771958857546,4.22118841,78.417,78.396,4.11252967]
[1771958861960,12.75249948,78.416,78.396,4.11252967]
[1771958862268,4.22118841,78.415,78.386,4.11252967]
[1771958863653,4.22118841,78.415,78.381,16.87072362]
[1771958863854,4.22118841,78.413,78.382,4.11252967]
[1771958865877,4.22118841,78.411,78.384,4.11252967]
[1771958867957,4.22118841,78.409,78.386,4.11252967]
[1771958869175,4.22118841,78.407,78.382,4.11252967]
[1771958870157,4.22118841,78.407,78.383,12.75786841]
[1771958872080,4.22118841,78.407,78.384,4.11252967]
[1771958873864,4.22118841,78.405,78.384,4.11252967]
[1771958874265,4.22118841,78.403,78.353,4.11252967]
[1771958874563,4.22118841,78.399,78.353,4.11252967]
[1771958876687,4.21638075,78.397,78.355,3.95287016]
[1771958877187,5.00514904,78.39,78.355,3.95287016]
[1771958877372,4.21638075,78.389,78.355,3.95287016]
[1771958878182,4.21638075,78.389,78.322,63.83902351]
[1771958878383,4.21638075,78.379,78.326,3.95287016]
[1771958879290,4.21638075,78.377,78.328,3.95287016]
[1771958881484,4.21638075,78.394,78.33,3.95287016]
[1771958881894,4.21638075,78.404,78.335,3.95287016]
[1771958882093,4.21638075,78.419,78.34,3.95287016]
[1771958882394,4.21638075,78.419,78.336,41.03020398]
[1771958882395,4.21638075,78.419,78.345,3.95287016]
[1771958883390,4.21638075,78.419,78.349,3.95287016]
[1771958883567,4.21638075,78.409,78.351,3.95287016]
[1771958887797,4.21638075,78.409,78.35,108.48755582]
[1771958887798,4.21638075,78.407,78.353,3.95287016]
[1771958888496,4.21638075,78.407,78.355,3.95287016]
[1771958889388,4.21638075,78.405,78.357,3.95287016]
[1771958889691,4.21638075,78.399,78.357,3.95287016]
[1771958891894,4.21638075,78.397,78.359,3.95287016]
[1771958892789,12.75542743,78.398,78.358,12.76193879]
[1771958892790,4.21638075,78.389,78.358,12.76193879]
[1771958892999,4.21638075,78.389,78.359,3.95287016]
[1771958893185,4.21638075,78.389,78.358,12.76193879]
[1771958894484,12.75705465,78.388,78.355,12.76242741]
[1771958894673,4.21638075,78.387,78.355,12.76242741]
[1771958896207,4.21638075,78.387,78.356,3.95287016]
[1771958896690,4.21638075,78.387,78.358,3.95287016]
[1771958897075,12.75738014,78.386,78.358,3.95287016]
[1771958897274,4.21638075,78.385,78.358,3.95287016]
[1771958898600,4.21638075,78.385,78.357,44.66735581]
[1771958898601,4.21638075,78.383,78.36,3.95287016]
[1771958899900,5.00514904,78.4,78.361,3.95287016]
[1771958900076,12.75428862,78.405,78.361,3.95287016]
[1771958901086,31.88572157,78.405,78.363,3.95287016]
[1771958901984,3.09544413,78.404,78.363,3.95287016]
[1771958903389,3.09521366,78.402,78.365,3.95287016]
[1771958905507,3.09304735,78.4,78.367,3.94606365]
[1771958907805,3.09159073,78.398,78.369,3.94606365]
[1771958909989,3.09159073,78.398,78.371,3.94606365]
[1771958910184,5.00514904,78.42,78.371,3.94606365]
[1771958910185,3.09016739,78.415,78.371,3.94606365]
[1771958911314,3.08946796,78.413,78.373,3.94606365]
[1771958914194,3.08946796,78.413,78.375,3.94606365]
[1771958915709,5.00514904,78.43,78.375,3.94606365]
[1771958915915,31.873701,78.435,78.375,3.94606365]
[1771958915916,3.08608946,78.42,78.375,3.94606365]
[1771958916212,3.08608946,78.42,78.376,44.65652749]